[Event "Titled Tuesday Blitz March 14 Early 2023"]
[White "Aditya Mittal"]
[Black "Kim, Sergey"]
[WhiteFideId "35042025"]
[BlackFideId "13700570"]
[WhiteElo "2396"]
[BlackElo "2628"]
[Result "1-0"]
[Round "04"]
[TimeControl "180+2"]
[Date "2023.03.14"]
[WhiteClock "0:01:03"]
[BlackClock "0:00:54"]

1. d4 {[%clk 0:03:00]}  Nf6 {[%clk 0:02:57]} 2. c4 {[%clk 0:03:01]}  g6 {[%clk 0:02:57]} 3. Nc3 {[%clk 0:03:00]}  Bg7 {[%clk 0:02:58]} 4. e4 {[%clk 0:03:01]}  d6 {[%clk 0:02:58]} 5. Be2 {[%clk 0:03:01]}  O-O {[%clk 0:02:58]} 6. Be3 {[%clk 0:03:02]}  e5 {[%clk 0:02:58]} 7. d5 {[%clk 0:03:03]}  a5 {[%clk 0:02:58]} 8. g4 {[%clk 0:03:03]}  Na6 {[%clk 0:02:58]} 9. h4 {[%clk 0:03:00]}  Nc5 {[%clk 0:02:58]} 10. f3 {[%clk 0:03:01]}  Bd7 {[%clk 0:02:58]} 11. h5 {[%clk 0:03:00]}  a4 {[%clk 0:02:58]} 12. Qd2 {[%clk 0:02:58]}  c6 {[%clk 0:02:57]} 13. Nh3 {[%clk 0:02:29]}  cxd5 {[%clk 0:02:54]} 14. cxd5 {[%clk 0:02:29]}  Rc8 {[%clk 0:02:47]} 15. Nf2 {[%clk 0:02:27]}  Qa5 {[%clk 0:02:40]} 16. Kf1 {[%clk 0:02:23]}  b5 {[%clk 0:02:39]} 17. Kg2 {[%clk 0:02:17]}  b4 {[%clk 0:02:36]} 18. Ncd1 {[%clk 0:02:17]}  Bb5 {[%clk 0:02:27]} 19. Bg5 {[%clk 0:01:44]}  Bxe2 {[%clk 0:02:10]} 20. Qxe2 {[%clk 0:01:44]}  a3 {[%clk 0:01:59]} 21. b3 {[%clk 0:01:42]}  Qb6 {[%clk 0:01:42]} 22. Ne3 {[%clk 0:01:42]}  h6 {[%clk 0:01:28]} 23. Bxf6 {[%clk 0:01:32]}  Bxf6 {[%clk 0:01:28]} 24. hxg6 {[%clk 0:01:33]}  fxg6 {[%clk 0:01:28]} 25. Rxh6 {[%clk 0:01:34]}  Kg7 {[%clk 0:01:27]} 26. Rah1 {[%clk 0:01:33]}  Rh8 {[%clk 0:01:27]} 27. Nc4 {[%clk 0:01:21]}  Qa6 {[%clk 0:01:25]} 28. Qe3 {[%clk 0:01:15]}  Rxh6 {[%clk 0:01:06]} 29. Qxh6+ {[%clk 0:01:15]}  Kf7 {[%clk 0:01:07]} 30. Qh7+ {[%clk 0:01:10]}  Bg7 {[%clk 0:01:06]} 31. Rh6 {[%clk 0:01:11]}  Nxb3 {[%clk 0:00:59]} 32. Qxg6+ {[%clk 0:01:06]}  Kg8 {[%clk 0:00:56]} 33. Qe6+ {[%clk 0:01:04]}  Kf8 {[%clk 0:00:54]} 34. Nxd6 {[%clk 0:01:03]} 1-0


[Site "https://www.chess.com"]

[Event "Titled Tuesday Blitz March 14 Early 2023"]
[White "polandchessplayer"]
[Black "Real_OceanStorm"]
[WhiteElo "2609"]
[BlackElo "2805"]
[Result "0-1"]
[Round "04"]
[TimeControl "180+2"]
[Date "2023.03.14"]
[WhiteClock "0:00:03"]
[BlackClock "0:00:12"]

1. d4 {[%clk 0:03:00]}  Nf6 {[%clk 0:02:57]} 2. c4 {[%clk 0:03:01]}  e6 {[%clk 0:02:58]} 3. Nc3 {[%clk 0:03:01]}  d5 {[%clk 0:02:58]} 4. Nf3 {[%clk 0:03:00]}  c6 {[%clk 0:02:57]} 5. e3 {[%clk 0:02:58]}  Nbd7 {[%clk 0:02:56]} 6. Bd3 {[%clk 0:02:57]}  Be7 {[%clk 0:02:54]} 7. O-O {[%clk 0:02:57]}  O-O {[%clk 0:02:54]} 8. b3 {[%clk 0:02:54]}  Qc7 {[%clk 0:02:52]} 9. Bb2 {[%clk 0:02:54]}  b6 {[%clk 0:02:52]} 10. Rc1 {[%clk 0:02:54]}  Bb7 {[%clk 0:02:52]} 11. Qe2 {[%clk 0:02:54]}  h6 {[%clk 0:02:52]} 12. e4 {[%clk 0:02:55]}  dxe4 {[%clk 0:02:52]} 13. Nxe4 {[%clk 0:02:55]}  c5 {[%clk 0:02:52]} 14. dxc5 {[%clk 0:02:39]}  Nxc5 {[%clk 0:02:41]} 15. Nxc5 {[%clk 0:02:34]}  Bxc5 {[%clk 0:02:39]} 16. Be5 {[%clk 0:02:33]}  Qe7 {[%clk 0:02:38]} 17. Rfd1 {[%clk 0:02:32]}  Rad8 {[%clk 0:02:38]} 18. Bb1 {[%clk 0:02:31]}  Rfe8 {[%clk 0:02:38]} 19. h3 {[%clk 0:02:31]}  Ba3 {[%clk 0:02:29]} 20. Rxd8 {[%clk 0:02:30]}  Rxd8 {[%clk 0:02:29]} 21. Rd1 {[%clk 0:02:30]}  Rxd1+ {[%clk 0:02:29]} 22. Qxd1 {[%clk 0:02:31]}  Nd7 {[%clk 0:02:28]} 23. Bc3 {[%clk 0:02:27]}  a5 {[%clk 0:02:10]} 24. Qd3 {[%clk 0:02:19]}  f5 {[%clk 0:02:01]} 25. Ne5 {[%clk 0:02:14]}  Qg5 {[%clk 0:01:47]} 26. Qf1 {[%clk 0:01:27]}  Nxe5 {[%clk 0:01:42]} 27. Bxe5 {[%clk 0:01:27]}  Bc5 {[%clk 0:01:40]} 28. Kh2 {[%clk 0:01:24]}  Qd2 {[%clk 0:01:37]} 29. f3 {[%clk 0:01:13]}  h5 {[%clk 0:01:01]} 30. h4 {[%clk 0:00:47]}  Qe3 {[%clk 0:00:49]} 31. Bc7 {[%clk 0:00:30]}  Bc6 {[%clk 0:00:39]} 32. Qd1 {[%clk 0:00:23]}  Kf7 {[%clk 0:00:30]} 33. Bc2 {[%clk 0:00:17]}  f4 {[%clk 0:00:26]} 34. Be4 {[%clk 0:00:12]}  Qf2 {[%clk 0:00:26]} 35. Bd8 {[%clk 0:00:06]}  Bxe4 {[%clk 0:00:19]} 36. Qd7+ {[%clk 0:00:06]}  Kf8 {[%clk 0:00:15]} 37. Qxe6 {[%clk 0:00:02]}  Qg1+ {[%clk 0:00:12]} 38. Kh3 {[%clk 0:00:03]}  Qh1# {[%clk 0:00:12]} 0-1


[Site "https://www.chess.com"]

[Event "Titled Tuesday Blitz March 14 Early 2023"]
[White "Galchenko, Matvey"]
[Black "Manukyan, Sargis A."]
[WhiteFideId "24175480"]
[BlackFideId "13303970"]
[WhiteElo "2404"]
[BlackElo "2187"]
[Result "1-0"]
[Round "04"]
[TimeControl "180+2"]
[Date "2023.03.14"]
[WhiteClock "0:00:15"]
[BlackClock "0:01:39"]

1. f4 {[%clk 0:02:57]}  d5 {[%clk 0:02:59]} 2. Nf3 {[%clk 0:02:56]}  Nc6 {[%clk 0:02:57]} 3. g3 {[%clk 0:02:51]}  Bg4 {[%clk 0:02:56]} 4. Bg2 {[%clk 0:02:52]}  Nf6 {[%clk 0:02:55]} 5. d3 {[%clk 0:02:51]}  Bxf3 {[%clk 0:02:55]} 6. Bxf3 {[%clk 0:02:50]}  e5 {[%clk 0:02:56]} 7. Nc3 {[%clk 0:02:51]}  Bb4 {[%clk 0:02:46]} 8. O-O {[%clk 0:02:49]}  Bxc3 {[%clk 0:02:42]} 9. bxc3 {[%clk 0:02:50]}  e4 {[%clk 0:02:42]} 10. Bg2 {[%clk 0:02:50]}  O-O {[%clk 0:02:41]} 11. Rb1 {[%clk 0:02:46]}  b6 {[%clk 0:02:40]} 12. c4 {[%clk 0:02:40]}  dxc4 {[%clk 0:02:37]} 13. dxe4 {[%clk 0:02:36]}  Qd4+ {[%clk 0:02:13]} 14. Qxd4 {[%clk 0:01:41]}  Nxd4 {[%clk 0:02:14]} 15. e5 {[%clk 0:01:29]}  Nxe2+ {[%clk 0:02:14]} 16. Kh1 {[%clk 0:01:29]}  Nc3 {[%clk 0:02:14]} 17. Rb4 {[%clk 0:01:14]}  Nfd5 {[%clk 0:02:07]} 18. Rxc4 {[%clk 0:01:14]}  c5 {[%clk 0:02:07]} 19. Bd2 {[%clk 0:01:10]}  b5 {[%clk 0:02:03]} 20. Rxc3 {[%clk 0:00:58]}  Nxc3 {[%clk 0:02:04]} 21. Bxa8 {[%clk 0:00:57]}  Nxa2 {[%clk 0:01:57]} 22. Bd5 {[%clk 0:00:43]}  Rd8 {[%clk 0:01:56]} 23. e6 {[%clk 0:00:38]}  Kf8 {[%clk 0:01:51]} 24. Bxa2 {[%clk 0:00:17]}  Rxd2 {[%clk 0:01:51]} 25. exf7 {[%clk 0:00:17]}  Rxc2 {[%clk 0:01:49]} 26. Be6 {[%clk 0:00:16]}  Re2 {[%clk 0:01:48]} 27. f5 {[%clk 0:00:16]}  g6 {[%clk 0:01:46]} 28. Rd1 {[%clk 0:00:16]}  Ke7 {[%clk 0:01:39]} 29. Rd7+ {[%clk 0:00:15]} 1-0


[Site "https://www.chess.com"]

[Event "Titled Tuesday Blitz March 14 Early 2023"]
[White "Lobanov, Sergei"]
[Black "Skatchkov, Pavel"]
[WhiteFideId "24183750"]
[BlackFideId "4121848"]
[WhiteElo "2489"]
[BlackElo "2476"]
[Result "1/2-1/2"]
[Round "04"]
[TimeControl "180+2"]
[Date "2023.03.14"]
[WhiteClock "0:00:45"]
[BlackClock "0:00:13"]

1. d4 {[%clk 0:02:59]}  Nf6 {[%clk 0:02:57]} 2. c4 {[%clk 0:03:00]}  e6 {[%clk 0:02:56]} 3. Nc3 {[%clk 0:03:00]}  d5 {[%clk 0:02:56]} 4. cxd5 {[%clk 0:02:59]}  exd5 {[%clk 0:02:57]} 5. Bg5 {[%clk 0:03:00]}  Bb4 {[%clk 0:02:57]} 6. e3 {[%clk 0:02:58]}  h6 {[%clk 0:02:58]} 7. Bh4 {[%clk 0:02:58]}  g5 {[%clk 0:02:58]} 8. Bg3 {[%clk 0:02:57]}  Ne4 {[%clk 0:02:59]} 9. Ne2 {[%clk 0:02:54]}  h5 {[%clk 0:02:59]} 10. h3 {[%clk 0:02:52]}  Nc6 {[%clk 0:02:48]} 11. Bh2 {[%clk 0:02:47]}  g4 {[%clk 0:01:56]} 12. hxg4 {[%clk 0:02:46]}  Qh4 {[%clk 0:01:56]} 13. g3 {[%clk 0:02:34]}  Qf6 {[%clk 0:01:54]} 14. Bg1 {[%clk 0:02:19]}  Bxg4 {[%clk 0:01:53]} 15. Qb3 {[%clk 0:02:13]}  O-O-O {[%clk 0:01:46]} 16. a3 {[%clk 0:01:58]}  Ba5 {[%clk 0:01:44]} 17. Rh4 {[%clk 0:01:43]}  Rhe8 {[%clk 0:01:40]} 18. Bh3 {[%clk 0:01:18]}  Qf3 {[%clk 0:00:42]} 19. Qc2 {[%clk 0:00:57]}  Kb8 {[%clk 0:00:24]} 20. Kf1 {[%clk 0:00:54]}  Qf5 {[%clk 0:00:17]} 21. Kg2 {[%clk 0:00:45]}  Qf3+ {[%clk 0:00:13]} 22. Kf1 {[%clk 0:00:44]}  Qf5 {[%clk 0:00:13]} 23. Kg2 {[%clk 0:00:45]}  Qf3+ {[%clk 0:00:13]} 24. Kf1 {[%clk 0:00:45]} 1/2-1/2


[Site "https://www.chess.com"]

[Event "Titled Tuesday Blitz March 14 Early 2023"]
[White "Postny, Evgeny"]
[Black "Turgut, Aydin"]
[WhiteFideId "2804344"]
[BlackFideId "2078791"]
[WhiteElo "2509"]
[BlackElo "2259"]
[Result "0-1"]
[Round "04"]
[TimeControl "180+2"]
[Date "2023.03.14"]
[WhiteClock "0:00:01"]
[BlackClock "0:00:04"]

1. e4 {[%clk 0:03:00]}  e5 {[%clk 0:02:59]} 2. Nf3 {[%clk 0:03:00]}  Nc6 {[%clk 0:02:58]} 3. Bc4 {[%clk 0:03:00]}  Bc5 {[%clk 0:02:58]} 4. c3 {[%clk 0:02:59]}  Nf6 {[%clk 0:02:59]} 5. d3 {[%clk 0:03:00]}  d6 {[%clk 0:02:59]} 6. Nbd2 {[%clk 0:02:58]}  a6 {[%clk 0:02:59]} 7. a4 {[%clk 0:02:57]}  Ba7 {[%clk 0:02:59]} 8. Nf1 {[%clk 0:02:56]}  O-O {[%clk 0:02:59]} 9. Ne3 {[%clk 0:02:56]}  Ne7 {[%clk 0:02:52]} 10. O-O {[%clk 0:02:52]}  c6 {[%clk 0:02:51]} 11. Bb3 {[%clk 0:02:50]}  Ng6 {[%clk 0:02:51]} 12. Bc2 {[%clk 0:02:50]}  d5 {[%clk 0:02:50]} 13. exd5 {[%clk 0:02:45]}  cxd5 {[%clk 0:02:51]} 14. d4 {[%clk 0:02:46]}  e4 {[%clk 0:02:31]} 15. Ne5 {[%clk 0:02:46]}  Bb8 {[%clk 0:02:10]} 16. f4 {[%clk 0:02:40]}  exf3 {[%clk 0:02:08]} 17. Nxf3 {[%clk 0:02:40]}  Ne4 {[%clk 0:01:55]} 18. c4 {[%clk 0:02:29]}  Nf6 {[%clk 0:01:50]} 19. cxd5 {[%clk 0:02:20]}  Nxd5 {[%clk 0:01:40]} 20. Nxd5 {[%clk 0:02:19]}  Qxd5 {[%clk 0:01:41]} 21. Bb3 {[%clk 0:02:20]}  Qd6 {[%clk 0:01:41]} 22. Be3 {[%clk 0:01:49]}  Bg4 {[%clk 0:01:41]} 23. g3 {[%clk 0:01:49]}  Bc7 {[%clk 0:01:34]} 24. Qd3 {[%clk 0:01:46]}  Bxf3 {[%clk 0:01:05]} 25. Rxf3 {[%clk 0:01:46]}  Ne5 {[%clk 0:01:06]} 26. Qf1 {[%clk 0:01:41]}  Nxf3+ {[%clk 0:01:05]} 27. Qxf3 {[%clk 0:01:42]}  Bb6 {[%clk 0:01:02]} 28. Rd1 {[%clk 0:01:38]}  Rae8 {[%clk 0:01:01]} 29. Bf2 {[%clk 0:01:33]}  Re7 {[%clk 0:00:59]} 30. Kg2 {[%clk 0:01:25]}  Rd8 {[%clk 0:00:49]} 31. Rd3 {[%clk 0:01:14]}  Qb4 {[%clk 0:00:46]} 32. Qf4 {[%clk 0:01:04]}  Red7 {[%clk 0:00:45]} 33. Rf3 {[%clk 0:01:02]}  Kh8 {[%clk 0:00:24]} 34. Bc2 {[%clk 0:00:27]}  Qd6 {[%clk 0:00:15]} 35. Qh4 {[%clk 0:00:23]}  g6 {[%clk 0:00:09]} 36. Rf4 {[%clk 0:00:17]}  Qe7 {[%clk 0:00:05]} 37. Qh6 {[%clk 0:00:12]}  Bxd4 {[%clk 0:00:04]} 38. Rh4 {[%clk 0:00:12]}  f5 {[%clk 0:00:04]} 39. Bxd4+ {[%clk 0:00:01]}  Rxd4 {[%clk 0:00:05]} 40. Rxd4 {[%clk 0:00:01]}  Rxd4 {[%clk 0:00:05]} 41. Kh3 {[%clk 0:00:01]}  Rd8 {[%clk 0:00:02]} 42. Bb3 {[%clk 0:00:01]}  Qg7 {[%clk 0:00:03]} 43. Qg5 {[%clk 0:00:01]}  Rf8 {[%clk 0:00:03]} 44. Qf4 {[%clk 0:00:01]}  Qf6 {[%clk 0:00:04]} 0-1


[Site "https://www.chess.com"]

[Event "Titled Tuesday Blitz March 14 Early 2023"]
[White "Melikyan, Gnel"]
[Black "Smirnov, Pavel"]
[WhiteFideId "54109990"]
[BlackFideId "4123425"]
[WhiteElo "2138"]
[BlackElo "2519"]
[Result "1-0"]
[Round "04"]
[TimeControl "180+2"]
[Date "2023.03.14"]
[WhiteClock "0:00:15"]
[BlackClock "0:00:01"]

1. e4 {[%clk 0:02:59]}  e5 {[%clk 0:02:59]} 2. Nf3 {[%clk 0:02:57]}  Nc6 {[%clk 0:02:59]} 3. d4 {[%clk 0:02:57]}  exd4 {[%clk 0:02:59]} 4. Nxd4 {[%clk 0:02:58]}  Nf6 {[%clk 0:02:59]} 5. Nxc6 {[%clk 0:02:57]}  bxc6 {[%clk 0:03:00]} 6. e5 {[%clk 0:02:58]}  Qe7 {[%clk 0:03:00]} 7. Qe2 {[%clk 0:02:58]}  Nd5 {[%clk 0:03:01]} 8. c4 {[%clk 0:02:59]}  Nb6 {[%clk 0:03:00]} 9. Nc3 {[%clk 0:02:58]}  Qe6 {[%clk 0:02:59]} 10. Qe4 {[%clk 0:02:58]}  Bb7 {[%clk 0:03:00]} 11. f4 {[%clk 0:02:50]}  Bb4 {[%clk 0:02:56]} 12. f5 {[%clk 0:02:47]}  Qe7 {[%clk 0:02:55]} 13. Bd3 {[%clk 0:02:38]}  O-O-O {[%clk 0:02:53]} 14. O-O {[%clk 0:02:36]}  Rhe8 {[%clk 0:02:51]} 15. Re1 {[%clk 0:02:25]}  d5 {[%clk 0:02:36]} 16. cxd5 {[%clk 0:02:12]}  cxd5 {[%clk 0:02:35]} 17. Qg4 {[%clk 0:01:58]}  Qc5+ {[%clk 0:01:09]} 18. Be3 {[%clk 0:01:28]}  d4 {[%clk 0:01:07]} 19. Bf2 {[%clk 0:01:28]}  Rxe5 {[%clk 0:00:43]} 20. f6+ {[%clk 0:01:25]}  Kb8 {[%clk 0:00:42]} 21. fxg7 {[%clk 0:01:25]}  Rg5 {[%clk 0:00:41]} 22. Qh4 {[%clk 0:00:47]}  Rxg2+ {[%clk 0:00:39]} 23. Kf1 {[%clk 0:00:47]}  Rg8 {[%clk 0:00:14]} 24. Ne4 {[%clk 0:00:33]}  Qd5 {[%clk 0:00:07]} 25. Kxg2 {[%clk 0:00:31]}  Rxg7+ {[%clk 0:00:06]} 26. Bg3 {[%clk 0:00:30]}  f5 {[%clk 0:00:05]} 27. Kg1 {[%clk 0:00:21]}  Bxe1 {[%clk 0:00:05]} 28. Rxe1 {[%clk 0:00:19]}  fxe4 {[%clk 0:00:05]} 29. Bxe4 {[%clk 0:00:20]}  Qe6 {[%clk 0:00:02]} 30. Qd8+ {[%clk 0:00:16]}  Nc8 {[%clk 0:00:02]} 31. Qxd4 {[%clk 0:00:16]}  Re7 {[%clk 0:00:01]} 32. Bxb7 {[%clk 0:00:15]} 1-0


[Site "https://www.chess.com"]

[Event "Titled Tuesday Blitz March 14 Early 2023"]
[White "Vlassov, Nikolai"]
[Black "Khoroshev, Nikita"]
[WhiteFideId "4103360"]
[BlackFideId "14200287"]
[WhiteElo "2324"]
[BlackElo "2354"]
[Result "1/2-1/2"]
[Round "04"]
[TimeControl "180+2"]
[Date "2023.03.14"]
[WhiteClock "0:00:12"]
[BlackClock "0:00:15"]

1. e4 {[%clk 0:03:00]}  c5 {[%clk 0:02:57]} 2. c3 {[%clk 0:03:00]}  Nf6 {[%clk 0:02:57]} 3. e5 {[%clk 0:03:01]}  Nd5 {[%clk 0:02:57]} 4. d4 {[%clk 0:03:01]}  cxd4 {[%clk 0:02:58]} 5. cxd4 {[%clk 0:03:02]}  d6 {[%clk 0:02:56]} 6. Bc4 {[%clk 0:03:01]}  Nb6 {[%clk 0:02:53]} 7. Bb3 {[%clk 0:03:01]}  dxe5 {[%clk 0:02:47]} 8. Qh5 {[%clk 0:03:01]}  e6 {[%clk 0:02:42]} 9. dxe5 {[%clk 0:03:01]}  Nc6 {[%clk 0:02:36]} 10. Nc3 {[%clk 0:03:00]}  Qd3 {[%clk 0:02:35]} 11. Bf4 {[%clk 0:02:59]}  Bb4 {[%clk 0:02:23]} 12. Ne2 {[%clk 0:02:56]}  Nd5 {[%clk 0:02:17]} 13. Rd1 {[%clk 0:02:52]}  Qg6 {[%clk 0:02:09]} 14. Qxg6 {[%clk 0:02:35]}  hxg6 {[%clk 0:02:10]} 15. Bxd5 {[%clk 0:02:28]}  exd5 {[%clk 0:02:11]} 16. O-O {[%clk 0:02:27]}  Bxc3 {[%clk 0:01:37]} 17. Nxc3 {[%clk 0:02:25]}  Be6 {[%clk 0:01:24]} 18. Nxd5 {[%clk 0:02:21]}  Bxd5 {[%clk 0:01:25]} 19. Rxd5 {[%clk 0:02:20]}  Ke7 {[%clk 0:01:24]} 20. Bg5+ {[%clk 0:01:54]}  Ke6 {[%clk 0:01:24]} 21. Rd6+ {[%clk 0:01:37]}  Kxe5 {[%clk 0:01:21]} 22. Rfd1 {[%clk 0:01:36]}  Kf5 {[%clk 0:01:12]} 23. R1d5+ {[%clk 0:01:28]}  Ne5 {[%clk 0:01:08]} 24. f4 {[%clk 0:01:19]}  f6 {[%clk 0:01:07]} 25. fxe5 {[%clk 0:01:17]}  fxg5 {[%clk 0:01:05]} 26. g4+ {[%clk 0:00:54]}  Kxg4 {[%clk 0:01:01]} 27. Rxg6 {[%clk 0:00:52]}  Rac8 {[%clk 0:00:56]} 28. Rd2 {[%clk 0:00:38]}  Rhe8 {[%clk 0:00:35]} 29. e6 {[%clk 0:00:31]}  Re7 {[%clk 0:00:28]} 30. Rg2+ {[%clk 0:00:24]}  Kf3 {[%clk 0:00:27]} 31. Rf2+ {[%clk 0:00:24]}  Kg4 {[%clk 0:00:24]} 32. Rg2+ {[%clk 0:00:19]}  Kf3 {[%clk 0:00:24]} 33. Rg3+ {[%clk 0:00:18]}  Kf4 {[%clk 0:00:24]} 34. R6xg5 {[%clk 0:00:15]}  Rc1+ {[%clk 0:00:23]} 35. Kg2 {[%clk 0:00:14]}  Rc2+ {[%clk 0:00:23]} 36. Kh3 {[%clk 0:00:15]}  Rxe6 {[%clk 0:00:20]} 37. R3g4+ {[%clk 0:00:15]}  Kf3 {[%clk 0:00:18]} 38. Rf5+ {[%clk 0:00:09]}  Ke3 {[%clk 0:00:17]} 39. Rxg7 {[%clk 0:00:09]}  Rxb2 {[%clk 0:00:14]} 40. a4 {[%clk 0:00:10]}  Rh6+ {[%clk 0:00:14]} 41. Kg3 {[%clk 0:00:09]}  Rhxh2 {[%clk 0:00:12]} 42. Re7+ {[%clk 0:00:09]}  Kd4 {[%clk 0:00:12]} 43. Rxb7 {[%clk 0:00:08]}  Rhg2+ {[%clk 0:00:11]} 44. Kh3 {[%clk 0:00:07]}  Rh2+ {[%clk 0:00:11]} 45. Kg3 {[%clk 0:00:08]}  Rxb7 {[%clk 0:00:11]} 46. Kxh2 {[%clk 0:00:08]}  Kc4 {[%clk 0:00:11]} 47. Ra5 {[%clk 0:00:08]}  Kb4 {[%clk 0:00:11]} 48. Ra6 {[%clk 0:00:08]}  Rg7 {[%clk 0:00:11]} 49. Kh3 {[%clk 0:00:09]}  Kc4 {[%clk 0:00:10]} 50. Kh4 {[%clk 0:00:09]}  Kd4 {[%clk 0:00:10]} 51. Kh5 {[%clk 0:00:09]}  Ke5 {[%clk 0:00:10]} 52. Kh6 {[%clk 0:00:09]}  Re7 {[%clk 0:00:10]} 53. Kg6 {[%clk 0:00:09]}  Rd7 {[%clk 0:00:09]} 54. Ra5+ {[%clk 0:00:07]}  Kd4 {[%clk 0:00:07]} 55. Kf5 {[%clk 0:00:06]}  Rd5+ {[%clk 0:00:07]} 56. Rxd5+ {[%clk 0:00:06]}  Kxd5 {[%clk 0:00:08]} 57. a5 {[%clk 0:00:06]}  a6 {[%clk 0:00:08]} 58. Kf4 {[%clk 0:00:07]}  Kc5 {[%clk 0:00:08]} 59. Ke3 {[%clk 0:00:07]}  Kb5 {[%clk 0:00:09]} 60. Kd2 {[%clk 0:00:08]}  Kxa5 {[%clk 0:00:10]} 61. Kc1 {[%clk 0:00:09]}  Kb4 {[%clk 0:00:11]} 62. Kb1 {[%clk 0:00:09]}  a5 {[%clk 0:00:12]} 63. Ka1 {[%clk 0:00:10]}  a4 {[%clk 0:00:13]} 64. Kb1 {[%clk 0:00:11]}  a3 {[%clk 0:00:14]} 65. Ka1 {[%clk 0:00:12]}  a2 {[%clk 0:00:15]} 66. Kxa2 {[%clk 0:00:12]} 1/2-1/2


[Site "https://www.chess.com"]

[Event "Titled Tuesday Blitz March 14 Early 2023"]
[White "Lopez Mulet, Inigo"]
[Black "Costachi, Mihnea"]
[WhiteFideId "22235620"]
[BlackFideId "1217518"]
[WhiteElo "2289"]
[BlackElo "2456"]
[Result "0-1"]
[Round "04"]
[TimeControl "180+2"]
[Date "2023.03.14"]
[WhiteClock "0:00:16"]
[BlackClock "0:00:07"]

1. Nf3 {[%clk 0:03:00]}  Nf6 {[%clk 0:02:59]} 2. e3 {[%clk 0:03:01]}  g6 {[%clk 0:03:00]} 3. b3 {[%clk 0:03:01]}  Bg7 {[%clk 0:03:01]} 4. Bb2 {[%clk 0:03:02]}  O-O {[%clk 0:03:02]} 5. d4 {[%clk 0:02:59]}  b6 {[%clk 0:03:02]} 6. Bd3 {[%clk 0:03:00]}  Bb7 {[%clk 0:03:03]} 7. Nbd2 {[%clk 0:03:00]}  d6 {[%clk 0:03:03]} 8. O-O {[%clk 0:03:01]}  Nbd7 {[%clk 0:03:04]} 9. Re1 {[%clk 0:03:01]}  Re8 {[%clk 0:03:03]} 10. e4 {[%clk 0:02:57]}  e5 {[%clk 0:03:04]} 11. d5 {[%clk 0:02:52]}  a5 {[%clk 0:03:03]} 12. a3 {[%clk 0:02:52]}  Rf8 {[%clk 0:03:00]} 13. b4 {[%clk 0:02:48]}  h6 {[%clk 0:02:59]} 14. Nc4 {[%clk 0:02:41]}  Nh5 {[%clk 0:02:52]} 15. bxa5 {[%clk 0:02:32]}  bxa5 {[%clk 0:02:51]} 16. a4 {[%clk 0:02:33]}  Nf4 {[%clk 0:02:50]} 17. Bc3 {[%clk 0:02:33]}  f5 {[%clk 0:02:32]} 18. Nxa5 {[%clk 0:02:27]}  Bc8 {[%clk 0:02:32]} 19. Nc6 {[%clk 0:02:25]}  Qf6 {[%clk 0:02:33]} 20. Qd2 {[%clk 0:02:04]}  fxe4 {[%clk 0:02:23]} 21. Bxe4 {[%clk 0:02:05]}  Nc5 {[%clk 0:02:24]} 22. a5 {[%clk 0:02:05]}  Nxg2 {[%clk 0:01:56]} 23. Nfxe5 {[%clk 0:02:02]}  Nxe4 {[%clk 0:01:35]} 24. Rxe4 {[%clk 0:01:42]}  dxe5 {[%clk 0:01:35]} 25. Bxe5 {[%clk 0:01:29]}  Qf3 {[%clk 0:01:02]} 26. Bxg7 {[%clk 0:01:23]}  Qxe4 {[%clk 0:00:49]} 27. Qxh6 {[%clk 0:01:19]}  Bf5 {[%clk 0:00:26]} 28. Ne5 {[%clk 0:00:36]}  Qh4 {[%clk 0:00:26]} 29. Bxf8 {[%clk 0:00:26]}  Rxf8 {[%clk 0:00:27]} 30. Qxh4 {[%clk 0:00:20]}  Nxh4 {[%clk 0:00:28]} 31. a6 {[%clk 0:00:20]}  Ra8 {[%clk 0:00:28]} 32. c4 {[%clk 0:00:19]}  Be4 {[%clk 0:00:25]} 33. Ra3 {[%clk 0:00:18]}  Kf8 {[%clk 0:00:21]} 34. a7 {[%clk 0:00:18]}  Nf5 {[%clk 0:00:16]} 35. Nc6 {[%clk 0:00:18]}  Ne7 {[%clk 0:00:08]} 36. Nd4 {[%clk 0:00:18]}  Nxd5 {[%clk 0:00:06]} 37. cxd5 {[%clk 0:00:16]}  Bxd5 {[%clk 0:00:06]} 38. Nb5 {[%clk 0:00:17]}  Rd8 {[%clk 0:00:06]} 39. Nxc7 {[%clk 0:00:17]}  Ba8 {[%clk 0:00:07]} 40. Rb3 {[%clk 0:00:16]}  Rd1# {[%clk 0:00:07]} 0-1


[Site "https://www.chess.com"]

[Event "Titled Tuesday Blitz March 14 Early 2023"]
[White "Sokac, Marko"]
[Black "EREBUNI91"]
[WhiteFideId "14531356"]
[WhiteElo "2355"]
[BlackElo "2757"]
[Result "0-1"]
[Round "04"]
[TimeControl "180+2"]
[Date "2023.03.14"]
[WhiteClock "0:00:08"]
[BlackClock "0:00:20"]

1. e4 {[%clk 0:03:00]}  c5 {[%clk 0:02:59]} 2. a3 {[%clk 0:03:01]}  d6 {[%clk 0:02:57]} 3. b4 {[%clk 0:03:01]}  Nf6 {[%clk 0:02:57]} 4. Nc3 {[%clk 0:03:01]}  g6 {[%clk 0:02:56]} 5. h4 {[%clk 0:03:01]}  Bg7 {[%clk 0:02:54]} 6. h5 {[%clk 0:03:01]}  Nxh5 {[%clk 0:02:54]} 7. Rxh5 {[%clk 0:03:01]}  gxh5 {[%clk 0:02:55]} 8. Qxh5 {[%clk 0:03:01]}  cxb4 {[%clk 0:02:55]} 9. axb4 {[%clk 0:03:02]}  Nc6 {[%clk 0:02:54]} 10. Bc4 {[%clk 0:02:52]}  Ne5 {[%clk 0:02:52]} 11. Bb3 {[%clk 0:02:51]}  Ng6 {[%clk 0:02:52]} 12. Nf3 {[%clk 0:02:43]}  e6 {[%clk 0:02:41]} 13. Bb2 {[%clk 0:02:41]}  Bd7 {[%clk 0:02:36]} 14. d4 {[%clk 0:02:35]}  Qe7 {[%clk 0:02:31]} 15. Na4 {[%clk 0:02:25]}  O-O-O {[%clk 0:02:24]} 16. Qa5 {[%clk 0:02:13]}  Bxa4 {[%clk 0:02:02]} 17. Rxa4 {[%clk 0:02:06]}  b6 {[%clk 0:01:55]} 18. Qxa7 {[%clk 0:01:56]}  Qxa7 {[%clk 0:01:56]} 19. Rxa7 {[%clk 0:01:57]}  Rd7 {[%clk 0:01:55]} 20. Ra6 {[%clk 0:01:49]}  Kb7 {[%clk 0:01:53]} 21. Ra1 {[%clk 0:01:35]}  Rc7 {[%clk 0:01:46]} 22. c4 {[%clk 0:01:32]}  Nf4 {[%clk 0:01:44]} 23. Kd2 {[%clk 0:01:29]}  Nxg2 {[%clk 0:01:39]} 24. Rg1 {[%clk 0:01:30]}  Bh6+ {[%clk 0:01:39]} 25. Kc2 {[%clk 0:01:17]}  Nf4 {[%clk 0:01:38]} 26. Bc1 {[%clk 0:01:18]}  f6 {[%clk 0:01:32]} 27. Rh1 {[%clk 0:01:13]}  Bg5 {[%clk 0:01:29]} 28. Nxg5 {[%clk 0:01:13]}  fxg5 {[%clk 0:01:30]} 29. Rh6 {[%clk 0:01:13]}  Re7 {[%clk 0:01:29]} 30. Be3 {[%clk 0:00:56]}  Rf8 {[%clk 0:01:26]} 31. c5 {[%clk 0:00:48]}  bxc5 {[%clk 0:01:18]} 32. bxc5 {[%clk 0:00:49]}  dxc5 {[%clk 0:01:19]} 33. dxc5 {[%clk 0:00:50]}  Kc6 {[%clk 0:01:16]} 34. Ba4+ {[%clk 0:00:48]}  Kc7 {[%clk 0:01:14]} 35. Bd4 {[%clk 0:00:44]}  e5 {[%clk 0:01:11]} 36. Bc3 {[%clk 0:00:43]}  Ne2 {[%clk 0:01:08]} 37. Rc6+ {[%clk 0:00:42]}  Kb7 {[%clk 0:01:07]} 38. Rb6+ {[%clk 0:00:41]}  Ka7 {[%clk 0:01:02]} 39. Bd2 {[%clk 0:00:34]}  Nd4+ {[%clk 0:01:01]} 40. Kd3 {[%clk 0:00:33]}  Rxf2 {[%clk 0:00:59]} 41. Bxg5 {[%clk 0:00:33]}  Rc7 {[%clk 0:00:48]} 42. Rh6 {[%clk 0:00:25]}  Rxc5 {[%clk 0:00:40]} 43. Rxh7+ {[%clk 0:00:24]}  Kb6 {[%clk 0:00:38]} 44. Bd8+ {[%clk 0:00:25]}  Ka6 {[%clk 0:00:35]} 45. Rh6+ {[%clk 0:00:25]}  Kb7 {[%clk 0:00:34]} 46. Bb6 {[%clk 0:00:17]}  Rf3+ {[%clk 0:00:24]} 47. Kd2 {[%clk 0:00:17]}  Rcc3 {[%clk 0:00:23]} 48. Bxd4 {[%clk 0:00:14]}  exd4 {[%clk 0:00:24]} 49. Re6 {[%clk 0:00:09]}  Rf2+ {[%clk 0:00:22]} 50. Kd1 {[%clk 0:00:09]}  Ra3 {[%clk 0:00:22]} 51. Bc6+ {[%clk 0:00:08]}  Kc7 {[%clk 0:00:22]} 52. Ke1 {[%clk 0:00:08]}  Rc2 {[%clk 0:00:20]} 0-1


[Site "https://www.chess.com"]